bitfinex-derivatives/quotes_SOLF0:USTF0_20250719
["timestamp","ask_amount","ask_price","bid_price","bid_amount"]
[1752968270094,3.15,176.89,176.88,3.26]
[1752968270499,8.8001,176.89,176.88,3.26]
[1752968270897,8.8001,176.89,176.87,105.26]
[1752968270898,3.15,176.89,176.87,108.47]
[1752968271399,8.8904,176.88,176.87,108.47]
[1752968271997,8.8904,176.88,176.87,3.21]
[1752968276604,8.8902,176.89,176.87,3.21]
[1752968276798,4.45504733,176.91,176.87,3.21]
[1752968277199,5.6501,176.89,176.87,3.21]
[1752968277399,8.8901,176.89,176.87,3.21]
[1752968277903,3.24,176.88,176.86,105.26]
[1752968278307,8.8904,176.88,176.87,3.21]
[1752968278502,1.21504733,176.89,176.86,108.47]
[1752968278715,3.24,176.87,176.86,108.47]
[1752968279605,8.8908,176.87,176.86,108.47]
[1752968279807,3.24,176.86,176.83,3.21]
[1752968280106,3.24,176.85,176.83,3.21]
[1752968280506,8.8917,176.85,176.83,3.21]
[1752968281803,5.6517,176.85,176.83,3.21]
[1752968282109,3.24,176.88,176.85,3.21]
[1752968282408,3.24,176.88,176.84,1.21504733]
[1752968282605,1.21504733,176.87,176.85,3.21]
[1752968282804,3.24,176.86,176.83,3.21]
[1752968283008,3.24,176.86,176.84,3.21]
[1752968283913,5.6517,176.85,176.84,3.21]
[1752968284113,10.10674733,176.85,176.84,3.21]
[1752968286112,5.652,176.83,176.82,108.47]
[1752968288318,8.8919,176.84,176.82,105.26]
[1752968288516,8.8919,176.84,176.83,3.21]
[1752968288717,5.6519,176.84,176.83,3.21]
[1752968291119,8.8919,176.84,176.83,3.21]
[1752968291920,5.6519,176.84,176.83,3.21]
[1752968293321,5.6519,176.84,176.83,4.42504733]
[1752968293720,5.6519,176.84,176.83,3.21]
[1752968295021,5.6515,176.85,176.83,3.21]
[1752968295222,5.6515,176.85,176.84,4.42504733]
[1752968296221,5.6515,176.85,176.84,3.21]
[1752968298928,3.24,176.83,176.82,3.21]
[1752968299627,8.892,176.83,176.82,3.21]
[1752968301227,8.7424,176.82,176.81,108.18]
[1752968301428,9.95744733,176.82,176.81,105.14]
[1752968303332,3.09,176.81,176.78,3.04]
[1752968303527,3.09,176.79,176.77,105.04]
[1752968303836,5.6536,176.78,176.77,105.04]
[1752968304229,5.6536,176.78,176.77,108.08]
[1752968304631,5.6535,176.79,176.78,3.04]
[1752968308335,8.7435,176.79,176.78,3.04]
[1752968309435,5.6535,176.79,176.78,3.04]
[1752968310034,5.6535,176.79,176.78,4.25504733]
[1752968311334,6.33636944,176.89,176.78,4.25504733]
[1752968311335,1.21504733,176.87,176.79,3.04]
[1752968311535,3.09,176.86,176.84,3.04]
[1752968311835,8.7414,176.85,176.84,3.04]
[1752968315232,5.6514,176.85,176.84,3.04]
[1752968317234,5.6512,176.86,176.84,3.04]
[1752968318138,5.6514,176.85,176.84,3.04]
[1752968318734,3.09,176.9,176.84,3.04]
[1752968319138,5.651,176.87,176.86,3.04]
[1752968319834,5.6506,176.88,176.86,3.04]
[1752968320635,8.7408,176.87,176.86,3.04]
[1752968329551,5.6508,176.87,176.86,3.04]
[1752968332651,8.7406,176.88,176.86,3.04]
[1752968332852,5.6506,176.88,176.86,3.04]
[1752968333152,5.6506,176.88,176.87,3.23]
[1752968336555,8.7302,176.89,176.87,3.23]
[1752968337153,5.6504,176.88,176.87,3.23]
[1752968340155,8.7304,176.88,176.87,3.23]
[1752968342458,3.08,176.88,176.87,3.23]
[1752968342756,3.08,176.89,176.87,3.23]
[1752968342951,5.6504,176.88,176.87,3.23]
[1752968343156,3.08,176.89,176.86,3.23]
[1752968343157,1.21487684,176.89,176.86,3.23]
[1752968343352,3.08,176.88,176.86,3.23]
[1752968344557,3.08,176.88,176.85,106.03487684]
[1752968344760,3.08,176.88,176.85,109.26487684]
[1752968345160,5.6509,176.87,176.85,109.26487684]
[1752968345361,3.08,176.86,176.85,109.26487684]
[1752968345760,3.08,176.86,176.85,108.05]
[1752968346661,8.7309,176.87,176.85,104.82]
[1752968346862,8.7309,176.87,176.86,3.23]
[1752968347558,8.7305,176.88,176.86,3.23]
[1752968347760,8.7305,176.88,176.86,4.44487684]
[1752968347969,8.7305,176.88,176.86,1.21487684]
[1752968348170,8.7305,176.88,176.87,3.23]
[1752968352866,5.6509,176.87,176.86,3.23]
[1752968353569,5.6511,176.86,176.85,104.82]
[1752968353773,8.7311,176.86,176.85,108.05]
[1752968355174,8.7311,176.86,176.85,3.23]
[1752968355373,8.7314,176.85,176.84,3.23]
[1752968355570,3.08,176.84,176.82,107.39]
[1752968355773,4.29487684,176.84,176.82,107.39]
[1752968355974,8.732,176.83,176.82,107.39]
[1752968356975,5.652,176.83,176.82,107.39]
[1752968358576,8.7317,176.85,176.82,109.8124]
[1752968358870,5.6517,176.85,176.84,3.23]
[1752968359477,8.7317,176.85,176.84,3.23]
[1752968366375,8.772,176.83,176.82,104.16]
[1752968366776,3.12,176.83,176.8,1.21487684]
[1752968367080,8.7724,176.82,176.81,3.08]
[1752968369080,5.6524,176.82,176.81,3.08]
[1752968375482,3.12,176.9,176.81,3.08]
[1752968375676,1.21487684,176.87,176.83,3.08]
[1752968375881,3.12,176.86,176.83,3.08]
[1752968376281,5.6514,176.85,176.83,3.08]
[1752968376478,5.6514,176.85,176.84,4.29487684]
[1752968377387,5.6512,176.86,176.84,105.17487684]
[1752968377589,5.6512,176.86,176.85,3.08]
[1752968379292,8.7712,176.86,176.85,3.08]
[1752968380393,5.651,176.87,176.85,4.29487684]
[1752968380590,5.651,176.87,176.86,3.08]
[1752968381394,124.51503577,176.95,176.86,3.08]
[1752968381590,3.12,176.91,176.88,1.21487684]
[1752968381791,3.12,176.91,176.89,3.08]
[1752968382391,5.6501,176.9,176.89,3.08]
[1752968385901,8.7701,176.9,176.89,3.08]
[1752968388606,5.6501,176.9,176.89,3.08]
[1752968389106,5.6496,176.91,176.89,3.08]
[1752968389303,5.6496,176.91,176.9,4.29487684]
[1752968390807,3.11,176.95,176.91,3.13]
[1752968391107,3.11,176.95,176.93,3.13]
[1752968391407,5.6486,176.94,176.93,3.13]
[1752968391602,8.7586,176.94,176.93,3.13]
[1752968392904,8.7592,176.92,176.91,107.07]
[1752968393306,8.7592,176.92,176.91,103.94]
[1752968393810,8.7595,176.91,176.9,3.13]
[1752968395012,5.6502,176.89,176.87,103.94]
[1752968395204,5.6502,176.89,176.88,1.21487684]
[1752968395611,8.7599,176.9,176.88,4.34487684]
[1752968395811,8.7599,176.9,176.89,3.13]
[1752968397814,3.11,176.9,176.89,3.13]
[1752968398015,5.6496,176.91,176.89,3.13]
[1752968398617,5.6493,176.92,176.9,3.13]
[1752968399720,5.6495,176.91,176.9,3.13]
[1752968400323,8.7595,176.91,176.9,3.13]
[1752968405222,3.11,176.91,176.9,8.7798]
[1752968405422,3.11,176.95,176.9,3.13]
[1752968406125,8.7594,176.92,176.9,3.13]
[1752968407431,5.6494,176.92,176.9,3.13]
[1752968409734,3.11,176.94,176.9,3.13]
[1752968409930,3.11,176.94,176.92,3.13]
[1752968409931,5.6487,176.94,176.92,3.13]
[1752968411236,3.11,176.95,176.92,3.13]
[1752968411237,5.6488,176.93,176.92,3.13]
[1752968411537,3.11,176.95,176.92,3.13]
[1752968411932,5.6487,176.94,176.92,3.13]
[1752968413936,8.7587,176.94,176.92,3.13]
[1752968415137,5.6487,176.94,176.92,3.13]
[1752968416037,5.6488,176.93,176.92,3.13]
[1752968417038,5.6486,176.94,176.92,1.21414349]
[1752968417234,5.6486,176.94,176.93,3.13]
[1752968417538,8.7586,176.94,176.93,3.13]
[1752968421542,5.6486,176.94,176.93,3.13]
[1752968422142,8.6886,176.94,176.93,3.13]
[1752968422539,8.6886,176.94,176.93,4.23414349]
[1752968422841,8.6886,176.94,176.93,3.02]
[1752968423042,8.6886,176.94,176.93,4.23414349]
[1752968425645,8.6886,176.94,176.93,3.02]
[1752968425848,8.6886,176.94,176.93,4.23414349]
[1752968426750,5.6486,176.94,176.93,4.23414349]
[1752968427454,5.6486,176.94,176.93,3.02]
[1752968427749,5.6486,176.94,176.93,4.23414349]
[1752968430053,5.6486,176.94,176.93,3.02]
[1752968430251,8.6886,176.94,176.93,4.23414349]
[1752968430753,8.6886,176.94,176.93,3.02]
[1752968437758,3.04,176.94,176.88,4.23414349]
[1752968437955,3.04,176.91,176.89,3.02]
[1752968438659,8.6895,176.91,176.9,3.02]
[1752968450364,5.6498,176.9,176.89,1.21414349]
[1752968450567,3.29,176.89,176.88,1.21414349]
[1752968450771,8.9398,176.9,176.88,1.21414349]
[1752968451073,8.9398,176.9,176.89,3.18]
[1752968451571,5.6498,176.9,176.89,3.18]
[1752968453968,8.9396,176.91,176.89,3.18]
[1752968455269,5.6498,176.9,176.89,3.18]
[1752968456971,8.9396,176.91,176.89,3.18]
[1752968459273,5.6498,176.9,176.89,3.18]
[1752968459678,8.9398,176.9,176.89,3.18]
[1752968460480,8.9401,176.89,176.88,3.18]
[1752968460877,5.6501,176.89,176.88,3.18]
[1752968461883,8.9401,176.89,176.88,3.18]
[1752968462379,1.21414349,176.9,176.86,3.18]
[1752968462570,3.29,176.89,176.86,3.18]
[1752968462770,3.29,176.89,176.85,1.21414349]
[1752968463076,3.29,176.88,176.85,4.39414349]
[1752968463275,3.29,176.88,176.86,3.18]
[1752968463576,5.6511,176.87,176.86,3.18]
[1752968463781,8.9411,176.87,176.86,3.18]
[1752968464087,3.29,176.87,176.86,3.18]
[1752968464281,3.29,176.88,176.86,3.18]
[1752968464575,20.79855417,176.99,176.84,103.94]
[1752968464576,3.29,176.9,176.87,1.21414349]
[1752968464780,1.21414349,176.93,176.9,3.18]
[1752968464980,3.29,176.92,176.9,3.18]
[1752968465171,5.6496,176.91,176.9,3.18]
[1752968466679,8.9396,176.91,176.9,3.18]
[1752968470184,5.6496,176.91,176.9,3.18]
[1752968470583,8.9396,176.91,176.9,3.18]
[1752968474086,5.6496,176.91,176.9,3.18]
[1752968477494,0.03668782,176.92,176.91,3.18]
[1752968480294,5.68588782,176.92,176.91,4.39414349]
[1752968481694,5.68588782,176.92,176.91,3.18]
[1752968482188,0.03668782,176.92,176.91,4.39414349]
[1752968482694,5.68588782,176.92,176.91,3.18]
[1752968482892,5.68588782,176.92,176.91,4.39414349]
[1752968483690,5.68588782,176.92,176.88,5.6502]
[1752968483691,5.6499,176.9,176.89,1.21414349]
[1752968483893,5.6499,176.9,176.85,4.73731996]
[1752968483894,3.04,176.9,176.85,4.73731996]
[1752968484092,3.04,176.9,176.86,1.21414349]
[1752968484289,3.04,176.88,176.87,3.33]
[1752968484687,8.6904,176.88,176.87,3.33]
[1752968484892,3.04,176.88,176.87,3.33]
[1752968485094,3.04,176.89,176.86,1.21414349]
[1752968485396,5.6506,176.88,176.86,1.21414349]
[1752968485594,8.6906,176.88,176.86,1.21414349]
[1752968486096,8.6906,176.88,176.87,3.33]
[1752968487301,9.90474349,176.88,176.87,3.33]
[1752968487595,8.6911,176.86,176.84,105.15414349]
[1752968488100,8.6911,176.86,176.85,3.33]
[1752968489396,5.6511,176.86,176.85,3.33]
[1752968490700,8.6909,176.87,176.85,3.33]
[1752968491198,8.72694141,176.89,176.86,1.21414349]
[1752968491400,5.68694141,176.89,176.87,3.33]
[1752968493199,0.03674141,176.89,176.87,8.9807]
[1752968493601,0.03674141,176.89,176.88,3.33]
[1752968495201,5.68684141,176.89,176.88,3.33]
[1752968495397,0.03674141,176.89,176.88,3.33]
[1752968500000,0.03674141,176.89,176.88,8.9804]
[1752968501006,5.6492,176.92,176.89,3.33]
[1752968501309,5.6492,176.92,176.91,3.33]
[1752968501503,8.6892,176.92,176.91,3.33]
[1752968505508,5.6492,176.92,176.91,3.33]
[1752968506412,8.6892,176.92,176.91,3.33]
[1752968507808,5.6495,176.91,176.89,103.92]
[1752968508000,3.04,176.92,176.89,107.25]
[1752968508309,3.04,176.9,176.89,107.25]
[1752968508517,8.6898,176.9,176.89,107.25]
[1752968510413,3.04,176.9,176.89,107.25]
[1752968510709,5.6496,176.91,176.9,3.26]
[1752968511206,3.11,176.96,176.9,4.47414349]
[1752968511414,3.11,176.96,176.93,3.26]
[1752968511911,3.11,176.95,176.93,3.29868006]
[1752968512802,8.7585,176.94,176.93,0.03868006]
[1752968513411,8.7585,176.94,176.93,3.29868006]
[1752968523214,8.7585,176.94,176.93,0.03868006]
[1752968523620,8.7585,176.94,176.93,8.006e-05]
[1752968523621,10.65568872,176.94,176.93,8.006e-05]
[1752968523818,10.65568872,176.94,176.89,103.92]
[1752968523819,5.6498,176.9,176.89,103.92]
[1752968524016,3.11,176.9,176.89,3.26]
[1752968524422,8.7598,176.9,176.89,3.26]
[1752968525424,5.68930501,176.91,176.89,3.26]
[1752968525816,0.03970501,176.91,176.89,3.26]
[1752968526020,5.6498,176.9,176.89,3.26]
[1752968526221,8.7598,176.9,176.89,3.26]
[1752968526422,5.6498,176.9,176.89,3.26]
[1752968527824,5.68930501,176.91,176.89,3.26]
[1752968530726,5.6498,176.9,176.89,3.26]
[1752968532425,5.68930501,176.91,176.89,3.26]
[1752968532626,0.03970501,176.91,176.89,3.26]
[1752968533320,5.6498,176.9,176.89,3.26]
[1752968535429,8.7598,176.9,176.89,3.26]
[1752968535925,1.25428148,176.91,176.85,5.6513]
[1752968536219,3.11,176.89,176.88,3.26]
[1752968536619,9.97467647,176.89,176.88,3.26]
[1752968536820,8.7601,176.89,176.88,3.26]
[1752968537523,5.6506,176.88,176.87,3.26]
[1752968537724,8.7606,176.88,176.87,3.26]
[1752968538225,3.14970501,176.91,176.87,4.47457647]
[1752968538426,4.36428148,176.91,176.88,3.26]
[1752968538834,5.65,176.9,176.88,3.26]
[1752968539231,0.03970501,176.91,176.88,3.26]
[1752968539436,5.68930501,176.91,176.89,3.26]
[1752968540735,0.03970501,176.91,176.89,5.6501]
[1752968541036,0.03970501,176.91,176.9,3.21]
[1752968541838,5.68920501,176.91,176.9,3.21]
[1752968542840,5.6502,176.89,176.87,5.6506]
[1752968543438,5.6499,176.9,176.88,3.21]
[1752968544329,5.6501,176.89,176.88,3.21]
[1752968545442,8.8101,176.89,176.88,3.21]
[1752968555445,5.6508,176.87,176.84,103.9]
[1752968555750,8.8108,176.87,176.86,3.21]
[1752968556552,5.6508,176.87,176.86,3.21]
[1752968574964,0.03887502,176.88,176.87,3.18]
[1752968575164,3.12,176.92,176.87,3.18]
[1752968575466,3.12,176.92,176.9,3.18]
[1752968576160,5.6497,176.91,176.9,3.18]
[1752968579270,8.7693,176.92,176.9,3.18]
[1752968579568,5.6493,176.92,176.9,3.18]
[1752968579768,4.33500783,176.94,176.9,3.18]
[1752968579968,3.12,176.93,176.9,3.18]
[1752968580965,5.6495,176.91,176.9,3.18]
[1752968584766,8.7695,176.91,176.9,3.18]
[1752968586069,5.6495,176.91,176.9,3.18]
[1752968590776,8.7695,176.91,176.9,3.18]
[1752968592576,5.6498,176.9,176.89,3.2172031]
[1752968592872,8.7698,176.9,176.89,3.2172031]
[1752968599782,8.7696,176.91,176.89,3.2172031]
[1752968600080,4.33500783,176.92,176.89,3.2172031]
[1752968600276,3.32,176.91,176.89,3.2172031]
[1752968601978,5.6498,176.9,176.89,3.2172031]
[1752968614400,8.9698,176.9,176.89,3.2172031]
[1752968615599,5.6498,176.9,176.89,3.2172031]
[1752968619709,8.9698,176.9,176.89,3.2172031]
[1752968622511,5.6498,176.9,176.89,3.2172031]
[1752968625817,8.9695,176.91,176.89,3.2172031]
[1752968626415,5.6495,176.91,176.89,3.2172031]
[1752968627120,5.6493,176.92,176.91,3.31]
[1752968627716,3.32,176.93,176.91,3.31]
[1752968627717,5.6489,176.93,176.91,3.31]
[1752968627915,5.6489,176.93,176.92,1.21500783]
[1752968628113,5.6489,176.93,176.92,4.52500783]
[1752968633028,5.6489,176.93,176.92,3.31]
[1752968633230,5.6489,176.93,176.92,4.52500783]
[1752968641638,5.6489,176.93,176.92,3.31]
[1752968644939,8.9689,176.93,176.92,3.31]
[1752968646639,5.6489,176.93,176.92,3.31]
[1752968646838,8.9689,176.93,176.92,3.31]
[1752968647139,5.6489,176.93,176.92,3.31]
[1752968649244,8.9687,176.94,176.92,3.31]
[1752968652537,8.9687,176.94,176.91,1.21500783]
[1752968652538,1.21500783,176.97,176.93,3.13]
[1752968652741,3.32,176.96,176.93,3.13]
[1752968653045,1.21500783,176.97,176.94,3.13]
[1752968653245,3.32,176.95,176.94,3.13]
[1752968653844,8.9682,176.95,176.94,3.13]
[1752968655341,8.9685,176.94,176.93,0.04299572]
[1752968655744,8.9685,176.94,176.93,3.17299572]
[1752968663448,8.9685,176.94,176.93,0.04299572]
[1752968670253,10.18350783,176.94,176.93,3.12299572]
[1752968673252,8.9685,176.94,176.93,3.12299572]
[1752968675055,5.6485,176.94,176.93,3.12299572]
[1752968675557,8.8585,176.94,176.93,3.12299572]
[1752968679456,5.6485,176.94,176.93,3.12299572]
[1752968679958,5.6483,176.95,176.93,3.12299572]
[1752968681261,5.6485,176.94,176.93,3.12299572]
[1752968685862,10.07330783,176.95,176.93,3.12299572]
[1752968686061,5.6483,176.95,176.93,3.12299572]
[1752968687366,5.6485,176.94,176.93,3.12299572]
[1752968688566,8.8583,176.95,176.93,3.12299572]
[1752968691964,5.6485,176.94,176.93,3.12299572]
[1752968693860,8.6585,176.94,176.93,3.12299572]
[1752968698968,5.6485,176.94,176.93,3.12299572]
[1752968700871,8.6585,176.94,176.93,3.12299572]
[1752968701070,5.6485,176.94,176.93,3.12299572]
[1752968701368,1.21500783,176.97,176.93,8.77169572]
[1752968701676,5.6481,176.96,176.95,3.29]
[1752968702562,4.22500783,176.97,176.95,3.29]
[1752968702865,3.01,176.98,176.95,3.29]
[1752968703072,5.6476,176.97,176.95,3.29]
[1752968703273,3.01,176.97,176.95,3.29]
[1752968704273,5.6479,176.96,176.95,3.29]
[1752968704972,8.6577,176.97,176.95,8.9382]
[1752968705269,8.6577,176.97,176.96,3.29]
[1752968708472,5.6477,176.97,176.96,3.29]
[1752968711569,8.6577,176.97,176.96,3.29]
[1752968719969,5.6482,176.95,176.94,103.56276304]
[1752968720183,8.6582,176.95,176.94,106.85276304]
[1752968721572,3.01,176.95,176.94,106.85276304]
[1752968722074,5.648,176.96,176.94,103.56276304]
[1752968722283,5.648,176.96,176.95,3.11]
[1752968722576,9.90270783,176.97,176.95,3.11]
[1752968722880,3.04,176.96,176.94,0.04276304]
[1752968723082,5.6482,176.95,176.94,3.15276304]
[1752968723276,9.90320783,176.95,176.94,3.15276304]
[1752968723779,9.90320783,176.95,176.94,0.04276304]
[1752968728484,6.86320783,176.95,176.94,3.15276304]
[1752968728685,9.90320783,176.95,176.94,3.15276304]
[1752968730187,6.86300783,176.96,176.94,3.15276304]
[1752968730390,9.90300783,176.96,176.94,3.15276304]
[1752968731189,11.292,177.03,176.94,3.15276304]
[1752968731190,5.6478,176.97,176.94,3.15276304]
[1752968731487,1.21500783,176.98,176.94,3.15276304]
[1752968731689,3.04,176.97,176.94,3.15276304]
[1752968731888,5.6479,176.96,176.94,3.15276304]
[1752968733285,5.6479,176.96,176.94,5.69126304]
[1752968733490,5.6479,176.96,176.95,3.11]
[1752968733891,8.6878,176.97,176.95,3.11]
[1752968734193,4.25500783,176.99,176.96,3.11]
[1752968734998,5.6473,176.98,176.96,3.14995186]
[1752968735900,9.90260783,176.97,176.96,0.03995186]
[1752968736201,3.04,176.96,176.93,3.11]
[1752968736598,8.6882,176.95,176.94,3.11]
[1752968741604,5.6482,176.95,176.94,3.11]
[1752968743004,0.03888222,176.96,176.94,4.32500783]
[1752968743204,0.03888222,176.96,176.95,3.11]
[1752968744807,0.03888222,176.96,176.95,8.7582]
[1752968752104,0.03888222,176.96,176.94,1.21500783]
[1752968752105,1.21500783,177.0,176.98,3.03]
[1752968753098,4.51500783,177.0,176.98,3.03]
[1752968753908,5.6469,176.99,176.98,3.03]
[1752968755908,8.9469,176.99,176.98,3.03]
[1752968756213,1.21500783,177.0,176.97,103.36]
[1752968756214,8.9472,176.98,176.97,103.36]
[1752968756411,10.16220783,176.98,176.97,103.36]
[1752968756616,10.16220783,176.98,176.97,106.39]
[1752968758510,8.9482,176.95,176.94,0.03686277]
[1752968758811,10.16320783,176.95,176.94,0.03686277]
[1752968759004,10.16320783,176.95,176.94,3.06686277]
[1752968759908,5.648,176.96,176.94,3.06686277]
[1752968761418,5.6482,176.95,176.94,3.06686277]
[1752968761712,1.21500783,176.97,176.94,3.06686277]
[1752968762015,4.51500783,176.97,176.94,3.06686277]
[1752968762217,4.51500783,176.97,176.94,3.03]
[1752968762412,1.21500783,176.97,176.94,3.03]
[1752968762718,3.3,176.96,176.94,3.0698997]
[1752968763015,3.3,176.95,176.94,3.0698997]
[1752968763218,8.9479,176.96,176.94,3.0698997]
[1752968763819,5.6479,176.96,176.94,3.0698997]
[1752968764213,6.86270783,176.97,176.94,3.0698997]
[1752968764418,5.6477,176.97,176.95,3.03]
[1752968764716,4.51500783,176.97,176.95,3.03]
[1752968764915,5.6479,176.96,176.95,3.03]
[1752968765311,4.51500783,176.97,176.95,3.03]
[1752968765918,10.16270783,176.97,176.95,3.03]
[1752968766320,4.51500783,176.97,176.95,3.03]
[1752968766919,5.6479,176.96,176.95,3.03]
[1752968767415,4.51500783,176.97,176.95,3.03]
[1752968767623,10.16270783,176.97,176.95,3.03]
[1752968767820,5.6477,176.97,176.95,3.03]
[1752968768122,5.6477,176.97,176.96,3.03]
[1752968771123,5.6474,176.98,176.96,3.03]
[1752968771323,6.86240783,176.98,176.96,3.03]
[1752968772724,8.9476,176.97,176.96,3.03]
[1752968780226,5.6476,176.97,176.96,3.03]
[1752968783329,8.8476,176.97,176.96,3.03]
[1752968783626,3.2,176.97,176.95,3.09]
[1752968783935,3.2,176.95,176.94,3.1298997]
[1752968784232,8.8482,176.95,176.94,3.1298997]
[1752968788639,8.8482,176.95,176.94,0.0398997]
[1752968788837,3.2,176.94,176.91,106.39]
[1752968789031,4.41500783,176.94,176.91,106.39]
[1752968789237,5.6488,176.93,176.92,3.09]
[1752968791449,8.8488,176.93,176.92,3.09]
[1752968792150,5.6488,176.93,176.92,3.09]
[1752968794248,8.8488,176.93,176.92,3.09]
[1752968796147,5.6488,176.93,176.92,3.09]
[1752968796649,5.6486,176.94,176.92,3.09]
[1752968796849,5.6486,176.94,176.93,106.39]
[1752968797054,5.6486,176.94,176.93,106.37]
[1752968798450,8.8486,176.94,176.93,106.37]
[1752968799552,5.6486,176.94,176.93,106.37]
[1752968800350,8.8486,176.94,176.93,106.37]
[1752968802351,5.6486,176.94,176.93,106.37]
[1752968804057,8.88450301,176.96,176.93,106.37]
[1752968804250,0.03640301,176.96,176.94,3.09]
[1752968804558,0.03640301,176.96,176.95,112.0182]
[1752968804854,5.6472,176.99,176.95,105.17727713]
[1752968805057,5.6472,176.99,176.96,3.09]
[1752968805358,5.6472,176.99,176.98,3.09]
[1752968807255,8.8472,176.99,176.98,3.09]
[1752968807454,8.8472,176.98,176.97,106.41288958]
[1752968809164,5.6472,176.98,176.97,106.41288958]
[1752968815870,5.647,176.99,176.97,106.41288958]
[1752968816169,5.647,176.99,176.98,3.26]
[1752968819169,8.727,176.99,176.98,3.26]
[1752968821068,9.94059647,176.99,176.98,3.26]
[1752968822181,6.86059647,176.99,176.98,3.26]
[1752968822776,5.647,176.99,176.98,3.26]
[1752968823069,6.86029647,177.0,176.98,3.26]
[1752968823276,4.29359647,177.02,177.0,3.26]
[1752968824469,5.6466,177.01,177.0,3.26]
[1752968824670,8.7266,177.01,177.0,3.26]
[1752968824874,5.6466,177.01,177.0,3.26]
[1752968825374,8.7266,177.01,177.0,3.26]
[1752968826174,3.08,177.0,176.97,3.30288958]
[1752968826476,3.08,176.99,176.97,0.04288958]
[1752968826674,3.08,176.99,176.97,3.30288958]
[1752968827272,5.6472,176.98,176.97,3.30288958]
[1752968827472,8.7272,176.98,176.97,3.30288958]
[1752968829278,8.7272,176.98,176.97,0.04288958]
[1752968830171,10.62283306,176.98,176.97,0.04288958]
[1752968830775,8.7279,176.96,176.95,103.22]
[1752968831380,8.7285,176.94,176.93,3.26]
[1752968832982,5.6485,176.94,176.93,3.26]
[1752968839988,8.7285,176.94,176.93,3.26]
[1752968840989,5.6488,176.93,176.92,103.22]
[1752968841187,3.05,176.93,176.92,106.4]
[1752968841488,8.6988,176.93,176.92,103.22]
[1752968841886,3.05,176.93,176.91,3.18]
[1752968842188,3.05,176.91,176.89,103.22]
[1752968842488,5.6504,176.88,176.87,3.18]
[1752968842788,3.05,176.87,176.86,106.4]
[1752968843188,8.7008,176.87,176.86,106.4]
[1752968844189,8.7014,176.85,176.84,3.18]
[1752968844384,0.04216292,176.89,176.85,3.18]
[1752968844688,3.05,176.91,176.85,3.18]
[1752968844986,5.68961111,176.89,176.85,3.18]
[1752968845187,3.08931111,176.89,176.85,3.18]
[1752968845590,3.05,176.88,176.85,3.18]
[1752968846389,0.03931111,176.89,176.85,3.18]
[1752968846689,8.701,176.87,176.85,3.18]
[1752968847789,5.6505,176.88,176.85,3.18]
[1752968847987,8.7005,176.88,176.85,3.18]
[1752968849090,5.6508,176.87,176.85,3.18]
[1752968850196,8.7008,176.87,176.85,3.18]
[1752968852096,5.6508,176.87,176.85,3.18]
[1752968854502,8.7008,176.87,176.85,3.18]
[1752968855704,8.7012,176.86,176.84,103.22]
[1752968856101,8.7012,176.86,176.85,3.18]